bitfinex-derivatives/quotes_BNBF0:USTF0_20250401
["timestamp","ask_amount","ask_price","bid_price","bid_amount"]
[1743519072564,1.62222482,615.63,614.12,0.2679057]
[1743519072858,1.62222482,615.62,614.13,0.2679057]
[1743519073060,1.62222482,615.61,614.14,0.2679057]
[1743519073364,4.86710453,615.6,614.15,0.2679057]
[1743519073559,4.86710453,615.59,614.16,0.2679057]
[1743519073759,4.86710453,615.58,614.17,0.2679057]
[1743519073957,4.86710453,615.57,614.18,0.2679057]
[1743519074163,0.32491267,615.55,614.19,0.2679057]
[1743519074359,4.8670923,615.54,614.2,0.2679057]
[1743519074560,0.32492851,615.52,614.21,0.2679057]
[1743519074761,4.21804689,615.51,614.22,0.2679057]
[1743519074958,0.32494435,615.49,614.23,0.2679057]
[1743519075259,4.21804689,615.48,614.24,0.2679057]
[1743519075460,0.32496019,615.46,614.25,0.2679057]
[1743519075659,4.21804689,615.45,614.26,0.2679057]
[1743519075860,4.21804689,615.45,614.08,0.45]
[1743519075861,0.32497603,615.43,614.27,0.2679057]
[1743519076058,1.62222482,615.42,614.28,0.2679057]
[1743519076259,1.94721141,615.41,614.29,0.26773284]
[1743519076460,1.62222482,615.4,614.3,0.26773284]
[1743519076767,1.62222482,615.39,614.31,0.26773284]
[1743519076961,1.62222482,615.38,614.32,0.26773284]
[1743519077167,1.62222482,615.37,614.33,0.26773284]
[1743519077366,1.62222482,615.36,614.34,0.26773284]
[1743519077661,1.9472431,615.35,614.35,0.26773284]
[1743519077861,1.62222482,615.34,614.36,0.26758681]
[1743519078066,0.32503412,615.32,614.37,0.26758681]
[1743519078259,0.32503412,615.32,614.08,0.45]
[1743519078260,4.8676525,615.31,614.38,0.26758681]
[1743519078464,0.32504997,615.29,614.09,0.26758681]
[1743519078659,4.86765976,615.28,614.1,0.26758681]
[1743519078862,4.86765976,615.27,614.11,0.26758681]
[1743519079061,0.3250711,615.25,614.12,0.26758681]
[1743519079261,0.3250711,615.25,614.08,0.45]
[1743519079262,4.86765976,615.24,614.13,0.26758681]
[1743519079462,3.76433067,615.27,614.08,0.45]
[1743519079463,0.32508696,615.22,614.08,0.45]
[1743519079661,4.21833453,615.21,614.09,0.26784805]
[1743519079867,4.54343205,615.2,614.1,0.26784805]
[1743519080069,4.21833453,615.19,614.11,0.26784805]
[1743519080262,5.19274484,615.18,614.12,0.26784805]
[1743519080466,4.54344791,615.17,614.13,0.26784805]
[1743519080667,4.54345319,615.16,614.14,0.26784805]
[1743519080863,4.54345848,615.15,614.15,0.26784805]
[1743519081063,4.54346376,615.14,614.16,0.26784805]
[1743519081264,1.62222482,615.13,614.17,0.26784805]
[1743519081462,1.62222482,615.12,614.18,0.26784805]
[1743519081662,1.62222482,615.11,614.19,0.26784805]
[1743519081866,1.62222482,615.1,614.2,0.26784805]
[1743519082063,0.32512923,615.14,614.21,0.26784805]
[1743519082263,0.32512923,615.14,614.1,0.236]
[1743519082264,0.32512923,615.14,614.22,0.26784805]
[1743519082462,0.32512923,615.14,614.23,0.26784805]
[1743519082661,0.28305455,615.13,614.24,0.26763267]
[1743519082865,0.28305455,615.13,614.25,0.26763267]
[1743519083164,0.28305455,615.13,614.26,0.26763267]
[1743519083468,0.28305455,615.13,614.27,0.26763267]
[1743519083668,0.28305455,615.13,614.28,0.26763267]
[1743519083864,0.28305455,615.13,614.29,0.26763267]
[1743519084064,0.28305455,615.13,614.1,0.236]
[1743519084269,0.28305455,615.13,614.11,0.26776038]
[1743519084465,0.28305455,615.13,614.12,0.26776038]
[1743519084769,0.32512923,615.14,614.13,0.26776038]
[1743519084965,0.32512923,615.14,614.14,0.26776038]
[1743519085164,0.32512923,615.14,614.15,0.26776038]
[1743519085366,0.32512923,615.14,614.16,0.26770742]
[1743519085663,0.32512923,615.14,614.17,0.26770742]
[1743519085867,0.32512923,615.14,614.18,0.26770742]
[1743519088670,1.44511001,615.43,614.31,0.26770742]
[1743519088965,1.44511001,615.43,614.32,0.26741405]
[1743519089168,1.44511001,615.43,614.33,0.26741405]
[1743519089369,0.6079021,615.56,614.34,0.26741405]
[1743519089664,4.86580284,615.55,614.35,0.26741405]
[1743519089869,4.86580284,615.54,614.36,0.26741405]
[1743519090069,1.44336614,615.54,614.37,0.26741405]
[1743519090266,5.38276837,615.53,614.38,0.26741405]
[1743519090565,8.61772338,615.52,614.39,0.26741405]
[1743519090766,4.86576837,615.51,614.4,0.26741405]
[1743519090966,6.30913451,615.5,614.41,0.26741405]
[1743519091171,4.86576837,615.49,614.42,0.26741405]
[1743519091373,4.86554982,615.48,614.43,0.26741405]
[1743519091571,1.44336614,615.48,614.44,0.26741405]
[1743519091767,4.86558642,615.47,614.45,0.26741405]
[1743519091966,4.86558642,615.46,614.46,0.26741405]
[1743519092169,4.86558642,615.45,614.47,0.26741405]
[1743519092370,4.86558642,615.44,614.48,0.26741405]
[1743519092570,4.86558642,615.43,614.2,0.26741405]
[1743519092771,4.86558642,615.42,614.21,0.26741405]
[1743519092971,4.86558642,615.41,614.22,0.26741405]
[1743519093270,4.86558642,615.4,614.23,0.26741405]
[1743519093469,4.86558642,615.39,614.19,0.32563213]
[1743519093674,1.59271657,615.35,614.24,0.26748703]
[1743519093873,4.86558642,615.34,614.25,0.26748703]
[1743519094071,4.86558642,615.33,614.26,0.26753674]
[1743519094276,4.86558642,615.32,614.27,0.26753674]
[1743519094573,4.86558642,615.31,614.28,0.26753674]
[1743519094774,4.86558642,615.3,614.29,0.26753674]
[1743519094969,4.86558642,615.29,614.3,0.26753674]
[1743519095173,4.86584279,615.28,614.31,0.26753674]
[1743519095372,4.21684157,615.27,614.32,0.26753674]
[1743519095569,4.21684157,615.26,614.33,0.26753674]
[1743519095770,1.44336614,615.27,614.34,0.26753674]
[1743519095975,0.28303958,615.33,614.35,0.26753674]
[1743519096170,4.21822835,615.32,614.36,0.26753674]
[1743519096471,1.59271657,615.62,614.37,0.26753674]
[1743519096669,4.8661056,615.52,614.38,0.26753674]
[1743519096873,4.8661056,615.51,614.39,0.26753674]
[1743519097073,4.21729152,615.5,614.4,0.26753674]
[1743519097375,4.21729152,615.49,614.41,0.26753674]
[1743519097583,4.21729152,615.48,614.42,0.26753674]
[1743519097877,4.21729152,615.47,614.43,0.26753674]
[1743519098069,4.21729152,615.46,614.44,0.26753674]
[1743519098270,1.44242483,615.48,614.42,0.548]
[1743519098473,4.21696666,615.47,614.43,0.26727178]
[1743519098669,4.21696666,615.46,614.44,0.26727178]
[1743519098875,0.28297974,615.52,614.45,0.26727178]
[1743519099074,4.86573357,615.51,614.46,0.26727178]
[1743519099277,4.86573357,615.5,614.47,0.26727178]
[1743519099469,0.95562994,616.36,614.42,0.548]
[1743519099470,5.19067792,615.49,614.48,0.26727178]
[1743519099676,5.19113857,615.48,614.49,0.26727178]
[1743519099877,5.19115649,615.47,614.5,0.26727178]
[1743519100077,4.86620158,615.46,614.51,0.26727178]
[1743519100277,4.86620158,615.45,614.52,0.26727178]
[1743519100472,5.19117233,615.44,614.53,0.26727178]
[1743519100673,4.86620158,615.43,614.54,0.26727178]
[1743519100879,4.86620158,615.42,614.55,0.26727178]
[1743519101177,1.7676267,615.44,614.42,0.548]
[1743519101178,4.21736375,615.41,614.56,0.26727178]
[1743519101479,1.7676267,615.44,614.42,0.548]
[1743519101480,4.21736375,615.4,614.57,0.26727178]
[1743519101774,4.21736375,615.39,614.58,0.26727178]
[1743519101978,4.21736375,615.38,614.59,0.26727178]
[1743519102274,5.98502741,615.37,614.6,0.26727178]
[1743519102477,4.21736375,615.36,614.61,0.26727178]
[1743519102678,4.21736375,615.35,614.62,0.26727178]
[1743519102878,4.21736375,615.34,614.63,0.26727178]
[1743519103075,4.21736375,615.33,614.64,0.26727178]
[1743519103379,1.44265595,615.33,614.65,0.26727178]
[1743519103577,1.44265595,615.33,614.66,0.26727178]
[1743519103781,1.44265595,615.33,614.43,0.26727178]
[1743519103982,0.60801162,615.37,614.44,0.26727178]
[1743519104183,4.21783953,615.36,614.45,0.26727178]
[1743519104385,4.21783953,615.35,614.46,0.26727178]
[1743519104681,4.21783953,615.35,614.42,0.548]
[1743519104682,5.66208011,615.34,614.47,0.26727178]
[1743519104877,4.21783953,615.33,614.48,0.26727178]
[1743519105080,1.62224597,615.32,614.49,0.26727178]
[1743519105277,0.60801162,615.37,614.5,0.26727178]
[1743519105481,4.21787197,615.36,614.51,0.26727178]
[1743519105681,1.62225845,615.35,614.52,0.26727178]
[1743519105882,0.32500771,615.37,614.53,0.26727178]
[1743519106084,1.62218125,615.36,614.42,0.548]
[1743519106284,1.62216778,615.35,614.43,0.26759226]
[1743519106483,1.62216778,615.34,614.44,0.26759226]
[1743519106685,1.62216778,615.33,614.45,0.26759226]
[1743519106881,1.62216778,615.32,614.43,0.26759226]
[1743519107082,1.62216778,615.31,614.44,0.26759226]
[1743519107282,1.62216778,615.3,614.45,0.26759226]
[1743519107479,1.62216778,615.29,614.43,0.26759226]
[1743519107687,1.62216778,615.28,614.44,0.26759226]
[1743519107883,0.2829947,615.35,614.45,0.26759226]
[1743519108084,1.62237307,615.34,614.46,0.26759226]
[1743519108280,1.62237307,615.33,614.47,0.26759226]
[1743519108481,1.62237307,615.32,614.48,0.26759226]
[1743519108686,1.62237307,615.31,614.49,0.26759226]
[1743519108887,0.2829947,615.35,614.5,0.26759226]
[1743519109188,1.62227156,615.34,614.51,0.26759226]
[1743519109384,0.2829947,615.35,614.43,0.26759226]
[1743519109580,1.62220795,615.34,614.44,0.26759226]
[1743519109787,0.2829947,615.35,614.45,0.26759226]
[1743519109982,0.2829947,615.35,614.46,0.26759226]
[1743519110182,0.2829947,615.35,614.47,0.26759226]
[1743519110384,0.2829947,615.35,614.48,0.26759226]
[1743519110586,0.2829947,615.35,614.42,0.548]
[1743519110587,0.2829947,615.35,614.49,0.26759226]
[1743519110887,0.2829947,615.35,614.5,0.26759226]
[1743519111088,0.2829947,615.35,614.51,0.26759226]
[1743519111282,0.2829947,615.35,614.52,0.26759226]
[1743519111480,0.32500771,615.37,614.53,0.26759226]
[1743519111685,0.32500771,615.37,614.54,0.26759226]
[1743519111885,0.32500771,615.37,614.55,0.26759226]
[1743519112183,0.32500771,615.37,614.56,0.26759226]
[1743519112381,0.32500771,615.37,614.57,0.26759226]
[1743519112586,0.28295213,615.36,614.58,0.26759226]
[1743519112786,0.28295213,615.36,614.59,0.26759226]
[1743519112986,0.28295213,615.36,614.42,0.548]
[1743519112987,0.28295213,615.36,614.6,0.26759226]
[1743519113189,0.28295213,615.36,614.61,0.26759226]
[1743519113384,0.28295213,615.36,614.62,0.26759226]
[1743519113588,0.28295213,615.36,614.63,0.26759226]
[1743519113784,0.28295213,615.36,614.64,0.26759226]
[1743519113990,0.28295213,615.36,614.42,0.548]
[1743519113991,0.28295213,615.36,614.65,0.26759226]
[1743519114188,0.28295213,615.36,614.42,0.548]
[1743519114189,0.28295213,615.36,614.66,0.26759226]
[1743519114384,0.28295213,615.36,614.67,0.26759226]
[1743519114689,0.28295213,615.36,614.68,0.26759226]
[1743519114890,0.28295213,615.36,614.69,0.26759226]
[1743519115088,0.28295213,615.36,614.7,0.26759226]
[1743519115289,0.28295213,615.36,614.39,0.26759226]
[1743519115489,0.28295213,615.36,614.4,0.26759226]
[1743519115685,0.28295213,615.36,614.41,0.26759226]
[1743519115885,0.28295213,615.36,614.42,0.26759226]
[1743519116085,0.28295213,615.36,614.43,0.26759226]
[1743519116488,0.28295213,615.36,614.38,0.241]
[1743519116489,0.28295213,615.36,614.44,0.26759226]
[1743519116685,0.28295213,615.36,614.45,0.26759226]
[1743519116885,0.28295213,615.36,614.46,0.26755661]
[1743519117089,0.28295213,615.36,614.47,0.26755661]
[1743519117285,0.32500771,615.37,614.48,0.26755661]
[1743519117492,0.32500771,615.37,614.49,0.26755661]
[1743519117685,0.32500771,615.37,614.5,0.26755661]
[1743519117883,0.32500771,615.37,614.51,0.26755661]
[1743519118091,0.32500771,615.37,614.52,0.26755661]
[1743519118294,0.32500771,615.37,614.2,0.26755661]
[1743519118498,0.32500771,615.37,614.5,0.585]
[1743519118691,0.28300391,615.36,614.51,0.26751856]
[1743519118992,0.32501828,615.35,614.52,0.26751856]
[1743519119192,0.32501828,615.35,614.53,0.26751856]
[1743519119385,0.32501828,615.35,614.54,0.26751856]
[1743519119585,0.32501828,615.35,614.55,0.26752729]
[1743519119791,0.32501828,615.35,614.56,0.26752729]
[1743519120289,0.32501828,615.35,614.57,0.26752729]
[1743519120485,0.32501828,615.35,614.58,0.26752729]
[1743519120685,0.32501828,615.35,614.59,0.26752729]
[1743519120991,0.32501828,615.35,614.6,0.26752729]
[1743519121191,0.32501828,615.35,614.61,0.26754013]
[1743519121393,0.32501828,615.35,614.62,0.26754013]
[1743519121692,0.28295443,615.34,614.63,0.26754013]
[1743519121994,0.28295443,615.34,614.64,0.26754013]
[1743519122287,0.28295443,615.34,614.65,0.26754013]
[1743519122492,0.28295443,615.34,614.66,0.26754013]
[1743519122692,0.28295443,615.34,614.67,0.26740044]
[1743519122892,0.28295443,615.34,614.68,0.26740044]
[1743519123092,0.28295443,615.34,614.69,0.26740044]
[1743519123292,0.32501828,615.35,614.7,0.26740044]
[1743519123486,0.32501828,615.35,614.71,0.26740044]
[1743519123690,0.28298435,615.33,614.51,0.26740044]
[1743519123887,0.28298435,615.33,614.52,0.26740044]
[1743519124189,0.28298435,615.33,614.53,0.26702507]
[1743519124392,0.28298435,615.33,614.54,0.26702507]
[1743519124585,0.28298435,615.33,614.55,0.26702507]
[1743519124992,0.28298435,615.33,614.56,0.26702507]
[1743519125193,0.28298435,615.33,614.57,0.26702507]
[1743519125389,0.28298435,615.33,614.51,0.26702507]
[1743519125590,0.28298435,615.33,614.58,0.26702507]
[1743519125787,0.28298435,615.33,614.59,0.26702507]
[1743519125997,0.28298435,615.33,614.6,0.26702507]
[1743519126187,0.28298435,615.33,614.61,0.26702507]
[1743519126388,0.32501828,615.35,614.62,0.26702507]
[1743519126593,0.32501828,615.35,614.63,0.26702507]
[1743519126789,0.32501828,615.35,614.64,0.26702507]
[1743519126993,0.32501828,615.35,614.65,0.26702507]
[1743519127189,0.32501828,615.35,614.66,0.26702507]
[1743519127490,0.32501828,615.35,614.67,0.26667241]
[1743519127793,0.28286819,615.34,614.68,0.26667241]
[1743519128093,0.28286819,615.34,614.69,0.26667241]
[1743519128288,0.28286819,615.34,614.7,0.26667241]
[1743519128495,0.28286819,615.34,614.71,0.26667241]
[1743519128689,0.28286819,615.34,614.72,0.26667241]
[1743519128893,0.28286819,615.34,614.5,0.826]
[1743519129195,0.28286819,615.34,614.51,0.26663053]
[1743519129390,0.32501828,615.35,614.52,0.26663053]
[1743519129695,0.32501828,615.35,614.53,0.26663053]
[1743519129892,0.471,615.34,614.54,0.26663053]
[1743519130095,0.471,615.34,614.55,0.26663053]
[1743519130596,0.471,615.34,614.56,0.26663053]
[1743519130796,0.471,615.34,614.57,0.26663053]
[1743519130991,0.471,615.34,614.58,0.26663053]
[1743519131194,0.471,615.34,614.59,0.26663053]
[1743519131395,0.471,615.34,614.6,0.26663053]
[1743519131590,0.471,615.34,614.61,0.26663053]
[1743519131793,0.471,615.34,614.5,0.241]
[1743519131794,0.471,615.34,614.62,0.26663053]
[1743519131992,0.471,615.34,614.5,0.241]
[1743519132192,0.471,615.34,614.51,0.2667218]
[1743519132391,0.471,615.34,614.52,0.2667218]
[1743519132596,0.471,615.34,614.53,0.2667218]
[1743519132797,0.471,615.34,614.54,0.2667218]
[1743519132997,0.471,615.34,614.5,0.241]
[1743519132998,0.471,615.34,614.55,0.2667218]
[1743519133199,0.471,615.34,614.56,0.2667218]
[1743519133502,0.471,615.34,614.57,0.2667218]
[1743519133701,0.471,615.34,614.58,0.2667218]
[1743519133997,0.471,615.34,614.59,0.2667218]
[1743519134198,0.471,615.34,614.6,0.2667218]
[1743519134400,0.471,615.34,614.61,0.2667218]
[1743519134598,0.471,615.34,614.62,0.2667218]
[1743519134902,0.471,615.34,614.63,0.2667218]
[1743519135199,0.471,615.34,614.64,0.2667218]
[1743519135399,0.471,615.34,614.65,0.2667218]
[1743519135698,0.471,615.34,614.66,0.2667218]
[1743519135901,0.471,615.34,614.67,0.2667218]
[1743519136103,0.471,615.34,614.62,0.58]
[1743519136104,0.471,615.34,614.68,0.2667218]
[1743519136294,0.471,615.34,614.69,0.2667218]
[1743519136496,0.471,615.34,614.7,0.2667218]
[1743519136898,0.471,615.34,614.71,0.26708989]
[1743519137099,0.471,615.34,614.72,0.26708989]
[1743519137294,0.471,615.34,614.62,0.58]
[1743519137295,0.471,615.34,614.73,0.26708989]
[1743519137500,0.471,615.34,614.74,0.26708989]
[1743519137695,0.471,615.34,614.75,0.26708989]
[1743519137901,0.471,615.34,614.76,0.26708989]
[1743519138096,0.471,615.34,614.77,0.26708989]
[1743519138403,0.471,615.34,614.78,0.26707953]
[1743519138602,0.471,615.34,614.79,0.26707953]
[1743519138903,0.471,615.34,614.8,0.26707953]
[1743519139096,0.471,615.34,614.81,0.26707953]
[1743519139302,0.471,615.34,614.82,0.26707953]
[1743519139501,0.471,615.34,614.83,0.26707953]
[1743519139696,0.471,615.34,614.84,0.26707953]
[1743519140097,0.471,615.34,614.85,0.26707953]
[1743519140300,0.471,615.34,614.86,0.26707953]
[1743519140501,0.471,615.34,614.87,0.26707953]
[1743519140704,0.471,615.34,614.88,0.26707953]
[1743519140896,0.471,615.34,614.62,0.58]
[1743519141503,0.471,615.34,614.63,0.26707396]
[1743519142009,0.471,615.34,614.64,0.26707396]
[1743519142207,0.471,615.34,614.65,0.26707396]
[1743519142407,0.471,615.34,614.66,0.26707396]
[1743519142709,0.471,615.34,614.67,0.26707396]
[1743519142904,0.471,615.34,614.68,0.26707396]
[1743519143103,0.471,615.34,614.69,0.26707396]
[1743519143303,0.471,615.34,614.7,0.26681223]
[1743519143503,0.471,615.34,614.71,0.26681223]
[1743519143703,0.471,615.34,614.72,0.26681223]
[1743519143918,0.471,615.34,614.73,0.26681223]
[1743519144206,0.471,615.34,614.74,0.26681223]
[1743519144403,0.471,615.34,614.63,0.26681223]
[1743519144600,0.471,615.34,614.64,0.26681223]
[1743519144806,0.471,615.34,614.65,0.26681223]
[1743519145005,0.471,615.34,614.63,0.26681223]
[1743519145206,0.471,615.34,614.64,0.26681223]
[1743519145409,0.471,615.34,614.65,0.26681223]
[1743519145608,0.28297054,615.33,614.66,0.26681223]
[1743519145811,0.28297054,615.33,614.67,0.26681223]
[1743519146004,0.28297054,615.33,614.68,0.26681223]
[1743519146209,0.28297054,615.33,614.69,0.26681223]
[1743519146409,0.28297054,615.33,614.7,0.26681223]
[1743519146708,0.28297054,615.33,614.71,0.26681223]
[1743519146906,0.28297054,615.33,614.72,0.26681223]
[1743519147210,0.28297054,615.33,614.73,0.26681223]
[1743519147406,0.28297054,615.33,614.74,0.26681223]
[1743519147610,0.28297054,615.33,614.75,0.26681223]
[1743519147810,0.28297054,615.33,614.62,0.58]
[1743519147811,0.28297054,615.33,614.76,0.26681223]
[1743519148004,0.28297054,615.33,614.77,0.26681223]
[1743519148206,0.28297054,615.33,614.78,0.26681223]
[1743519148408,0.28297054,615.33,614.79,0.26681223]
[1743519148604,0.28297054,615.33,614.8,0.26681223]
[1743519148805,0.471,615.34,614.81,0.26681223]
[1743519149312,0.471,615.34,614.82,0.26681223]
[1743519149516,0.471,615.34,614.83,0.26681223]
[1743519149811,0.471,615.34,614.84,0.26681223]
[1743519150011,0.471,615.34,614.85,0.26681223]
[1743519150213,0.471,615.34,614.86,0.26681223]
[1743519150412,0.471,615.34,614.87,0.26681223]
[1743519150612,0.471,615.34,614.88,0.26681223]
[1743519150813,0.471,615.34,614.89,0.26681223]
[1743519151009,0.471,615.34,614.9,0.26681223]
[1743519151215,0.471,615.34,614.91,0.26681223]
[1743519151412,0.471,615.34,614.92,0.26681223]
[1743519151616,0.471,615.34,614.74,0.241]
[1743519151617,0.471,615.34,614.93,0.26681223]
[1743519151809,0.471,615.34,614.75,0.401]
[1743519152008,0.471,615.34,614.76,0.26652725]
[1743519152315,0.471,615.34,614.77,0.26652725]
[1743519152516,0.471,615.34,614.78,0.26676439]
[1743519152716,0.471,615.34,614.79,0.26676439]
[1743519153015,0.471,615.34,614.8,0.26676439]
[1743519153216,0.471,615.34,614.81,0.26676439]
[1743519153418,0.471,615.34,614.82,0.26676439]
[1743519153615,0.471,615.34,614.83,0.26676439]
[1743519153910,0.471,615.34,614.84,0.26676439]
[1743519154116,0.471,615.34,614.85,0.26676439]
[1743519154317,0.471,615.34,614.86,0.26676439]
[1743519154510,0.471,615.34,614.76,0.26676439]
[1743519154711,0.28284864,615.33,614.77,0.26676439]
[1743519154915,0.28284864,615.33,614.78,0.26676439]
[1743519155215,0.28284864,615.33,614.79,0.26676439]
[1743519155409,0.28284864,615.33,614.75,0.401]
[1743519155410,0.28284864,615.33,614.8,0.26676439]
[1743519155610,0.28284864,615.33,614.81,0.26708419]
[1743519155816,0.28284864,615.33,614.82,0.26708419]
[1743519156017,0.28284864,615.33,614.75,0.401]
[1743519156018,0.28284864,615.33,614.83,0.26708419]
[1743519156216,0.28284864,615.33,614.84,0.26708419]
[1743519156418,0.471,615.34,614.85,0.26708419]
[1743519156610,0.471,615.34,614.75,0.401]
[1743519156611,0.471,615.34,614.86,0.26708419]
[1743519156812,0.471,615.34,614.87,0.26708419]
[1743519157008,0.471,615.34,614.88,0.26708419]
[1743519157210,0.471,615.34,614.89,0.26708419]
[1743519157411,0.471,615.34,614.9,0.26708419]
[1743519157717,0.2828406,615.33,614.91,0.26708419]
[1743519157914,0.2828406,615.33,614.92,0.26708419]
[1743519158112,0.2828406,615.33,614.93,0.26708419]
[1743519158311,0.2828406,615.33,614.94,0.26708419]
[1743519158515,0.2828406,615.33,614.95,0.26708419]
[1743519158714,0.2828406,615.33,614.96,0.26723756]
[1743519158912,0.2828406,615.33,614.97,0.26723756]
[1743519159112,0.2828406,615.33,614.98,0.26723756]
[1743519159312,0.2828406,615.33,614.99,0.26723756]
[1743519159515,0.64886503,616.05,614.76,0.26723756]
[1743519159717,0.32465951,616.03,614.77,0.26723756]
[1743519159915,4.8666499,616.02,614.78,0.26723756]
[1743519160118,0.32467532,616.0,614.79,0.26723756]
[1743519160319,4.21776325,615.99,614.8,0.26723756]
[1743519160518,0.32469113,615.97,614.81,0.26723756]
[1743519160820,4.21761252,615.96,614.82,0.26723756]
[1743519161012,0.32470695,615.94,614.83,0.26723756]
[1743519161213,4.21761252,615.93,614.84,0.26723756]
[1743519161414,0.32472276,615.91,614.85,0.26723756]
[1743519161618,1.62215866,615.9,614.86,0.26723756]
[1743519161818,2.01815866,615.89,614.86,0.26723756]
[1743519162016,1.62215866,615.88,614.87,0.26723756]
[1743519162220,1.86018991,615.89,614.88,0.26723756]
[1743519162422,0.396,615.89,614.89,0.2673306]
[1743519162623,0.396,615.89,614.75,0.401]
[1743519163520,0.396,615.89,614.76,0.2672716]
[1743519163923,0.396,615.89,614.77,0.2672716]
[1743519164121,0.396,615.89,614.78,0.2672716]
[1743519164318,0.32474385,615.87,614.79,0.2672716]
[1743519164520,0.32474385,615.87,614.8,0.2672716]
[1743519164824,0.32474385,615.87,614.81,0.2672716]
[1743519165125,0.32474385,615.87,614.75,0.401]
[1743519165322,0.32474385,615.87,614.76,0.26716108]
[1743519165518,0.32474385,615.87,614.77,0.26716108]
[1743519165723,0.32474385,615.87,614.78,0.26716108]
[1743519165922,0.32474385,615.87,614.79,0.26716108]
[1743519166118,0.32474385,615.87,614.8,0.26716108]
[1743519166325,0.32474385,615.87,614.81,0.26716108]
[1743519166524,0.32474385,615.87,614.82,0.26716108]
[1743519166726,0.32474385,615.87,614.83,0.26716108]
[1743519166926,0.32474385,615.87,614.75,0.401]
[1743519166927,0.32474385,615.87,614.84,0.26716108]
[1743519167124,0.32474385,615.87,614.85,0.26716108]
[1743519167324,0.32474385,615.87,614.86,0.26716108]
[1743519167521,0.32474385,615.87,614.87,0.26716108]
[1743519167725,0.32474385,615.87,614.88,0.26716108]
[1743519168027,0.32474385,615.87,614.89,0.26716108]
[1743519168220,1.6221556,615.86,614.9,0.26716108]
[1743519168428,0.32474385,615.87,614.91,0.26716108]
[1743519168627,1.62215239,615.86,614.92,0.26716108]
[1743519168830,0.32475967,615.84,614.93,0.26716108]
[1743519169126,0.32475967,615.84,614.94,0.26716108]
[1743519169324,0.32475967,615.84,614.95,0.26716108]
[1743519169520,0.32475967,615.84,614.96,0.26716108]
[1743519169726,0.32475967,615.84,614.9,0.26716108]
[1743519169727,0.28288198,615.83,614.9,0.26716108]
[1743519169926,0.32477549,615.81,614.91,0.26716108]
[1743519170125,0.32477549,615.81,614.9,0.26716108]
[1743519170423,1.62216111,615.8,614.91,0.26716108]
[1743519170623,1.62216111,615.79,614.92,0.26716108]
[1743519170828,0.32477549,615.81,614.93,0.26716108]
[1743519171028,1.62220408,615.8,614.94,0.26716108]
[1743519171228,1.62220408,615.79,614.94,0.26716108]
[1743519171429,0.32477549,615.81,614.95,0.26716108]
[1743519171625,1.62220679,615.8,614.9,0.26716108]
[1743519171827,1.62220679,615.79,614.9,0.26716108]
[1743519172026,0.32479659,615.77,614.9,0.26716108]
[1743519172629,0.28289463,615.76,614.9,0.26716108]
[1743519172924,0.32481242,615.74,614.9,0.26716108]
[1743519173630,0.32481242,615.74,614.91,0.26716108]
[1743519173832,0.32481242,615.74,614.92,0.26716108]
[1743519174034,0.32481242,615.74,614.93,0.26716108]
[1743519174234,0.32481242,615.74,614.94,0.26716108]
[1743519174433,0.32481242,615.74,614.89,0.241]
[1743519174732,0.32481242,615.74,614.9,0.26730914]
[1743519174927,0.2828291,615.73,614.91,0.26730914]
[1743519175136,0.32482297,615.72,614.92,0.26730914]
[1743519175332,0.32482297,615.72,614.93,0.26730914]
[1743519175528,0.32482297,615.72,614.94,0.26730914]
[1743519175730,0.32482297,615.72,614.95,0.26730914]
[1743519176131,0.32482297,615.72,614.96,0.26730914]
[1743519176328,0.32482297,615.72,614.96,0.26721175]
[1743519176633,0.32482297,615.72,614.97,0.26721175]
[1743519176828,0.32482297,615.72,614.98,0.26721175]
[1743519177031,0.32482297,615.72,614.99,0.26721175]
[1743519177228,0.32482297,615.72,615.0,0.26721175]
[1743519177432,0.32482297,615.72,615.01,0.26721175]
[1743519177633,0.32482297,615.72,614.9,0.26721175]
[1743519177829,0.32482297,615.72,614.91,0.26721175]
[1743519178129,0.2828383,615.71,614.92,0.26721175]
[1743519178334,0.32483352,615.7,614.93,0.26721175]
[1743519178530,0.32483352,615.7,614.9,0.26721175]
[1743519178732,0.32483352,615.7,614.91,0.26721175]
[1743519178936,0.32483352,615.7,614.92,0.26721175]
[1743519179131,0.32483352,615.7,614.93,0.26721175]
[1743519179436,0.32483352,615.7,614.94,0.26713794]
[1743519179834,0.32483352,615.7,614.95,0.26713794]
[1743519180035,0.32483352,615.7,614.96,0.26713794]
[1743519180233,0.32483352,615.7,614.89,0.241]
[1743519180234,0.32483352,615.7,614.97,0.26713794]
[1743519180430,0.32483352,615.7,614.98,0.26713794]
[1743519180635,0.32483352,615.7,614.99,0.26713794]
[1743519180831,0.32483352,615.7,615.0,0.26718459]
[1743519181032,0.32483352,615.7,615.01,0.26718459]